[Event "*** Titled Tuesday Blitz"]
[Site "Chess.com"]
[Date "2020.12.29"]
[Round "8"]
[White "Martins-BR"]
[Black "IMVoja"]
[Result "0-1"]
[WhiteElo "2281"]
[BlackElo "2416"]
[TimeControl "180+1"]
[EndTime "11:28:25 PST"]
[Termination "IMVoja won on time"]

1. e4 {[%clk 0:03:00.9]} 1... e6 {[%clk 0:02:59.3]} 2. d4 {[%clk 0:03:00.2]}
2... d5 {[%clk 0:02:59.2]} 3. Nc3 {[%clk 0:03:00.3]} 3... Bb4 {[%clk 0:02:59]}
4. e5 {[%clk 0:03:00.5]} 4... Qd7 {[%clk 0:02:58.7]} 5. a3 {[%clk 0:02:56.5]}
5... Bxc3+ {[%clk 0:02:58]} 6. bxc3 {[%clk 0:02:55.8]} 6... b6 {[%clk
0:02:58.6]} 7. Nf3 {[%clk 0:02:47]} 7... Bb7 {[%clk 0:02:51.6]} 8. Bd3 {[%clk
0:02:38.3]} 8... Nc6 {[%clk 0:02:51]} 9. O-O {[%clk 0:02:34.6]} 9... O-O-O
{[%clk 0:02:49.9]} 10. Qe2 {[%clk 0:02:32.6]} 10... Kb8 {[%clk 0:02:43.5]} 11.
Bb5 {[%clk 0:02:27.7]} 11... f5 {[%clk 0:02:37.8]} 12. a4 {[%clk 0:02:23.7]}
12... a5 {[%clk 0:02:34.4]} 13. Ba3 {[%clk 0:02:19.3]} 13... h6 {[%clk
0:02:33.7]} 14. Rfd1 {[%clk 0:02:09.8]} 14... g5 {[%clk 0:02:33.1]} 15. c4
{[%clk 0:02:07.3]} 15... dxc4 {[%clk 0:02:25.2]} 16. Bxc4 {[%clk 0:02:03.6]}
16... Nge7 {[%clk 0:02:24.1]} 17. Bb5 {[%clk 0:01:58.6]} 17... Nd5 {[%clk
0:02:22.4]} 18. c4 {[%clk 0:01:47.8]} 18... Nc3 {[%clk 0:01:56]} 19. Qe3 {[%clk
0:01:45.6]} 19... Nxd1 {[%clk 0:01:54.4]} 20. Rxd1 {[%clk 0:01:44.6]} 20... f4
{[%clk 0:01:53.7]} 21. Qe2 {[%clk 0:01:37]} 21... g4 {[%clk 0:01:52]} 22. Ne1
{[%clk 0:01:35.6]} 22... f3 {[%clk 0:01:52]} 23. Qe3 {[%clk 0:01:24.7]} 23...
Qg7 {[%clk 0:01:37.3]} 24. Bxc6 {[%clk 0:00:25.1]} 24... Bxc6 {[%clk 0:01:34.6]}
25. c5 {[%clk 0:00:24.9]} 25... Ka7 {[%clk 0:01:00]} 26. cxb6+ {[%clk
0:00:23.8]} 26... cxb6 {[%clk 0:01:00.3]} 27. Bd6 {[%clk 0:00:21.5]} 27... Rd7
{[%clk 0:00:52.8]} 28. Rb1 {[%clk 0:00:19.3]} 28... Rb7 {[%clk 0:00:52.7]} 29.
Qc3 {[%clk 0:00:18.8]} 29... Qd7 {[%clk 0:00:52.5]} 30. Nd3 {[%clk 0:00:17.8]}
30... Rc8 {[%clk 0:00:49.8]} 31. Qd2 {[%clk 0:00:16.5]} 31... fxg2 {[%clk
0:00:48.9]} 32. Nf4 {[%clk 0:00:16.1]} 32... Be4 {[%clk 0:00:46.9]} 33. Re1
{[%clk 0:00:13.3]} 33... Bf3 {[%clk 0:00:44.6]} 34. Nh5 {[%clk 0:00:12.8]} 34...
Qc6 {[%clk 0:00:44.1]} 35. Nf6 {[%clk 0:00:12.5]} 35... Qc3 {[%clk 0:00:43.6]}
36. Qxc3 {[%clk 0:00:08.4]} 36... Rxc3 {[%clk 0:00:43.3]} 37. h3 {[%clk
0:00:08.7]} 37... h5 {[%clk 0:00:42.3]} 38. hxg4 {[%clk 0:00:08.3]} 38... hxg4
{[%clk 0:00:42.1]} 39. Kh2 {[%clk 0:00:09]} 39... b5 {[%clk 0:00:38.2]} 40. axb5
{[%clk 0:00:08.2]} 40... Rxb5 {[%clk 0:00:38.4]} 41. Kg3 {[%clk 0:00:07.7]}
41... a4 {[%clk 0:00:32]} 42. Ra1 {[%clk 0:00:05]} 42... Ra5 {[%clk 0:00:30.9]}
43. Bb4 {[%clk 0:00:03.3]} 43... Rb3 {[%clk 0:00:10.8]} 44. Bxa5 {[%clk
0:00:03.1]} 44... Ka6 {[%clk 0:00:11.1]} 45. Bd2 {[%clk 0:00:02.4]} 45... a3
{[%clk 0:00:10.3]} 0-1

[Event "*** Titled Tuesday Blitz"]
[Site "Chess.com"]
[Date "2020.12.29"]
[Round "8"]
[White "AlessiaSanteramo"]
[Black "03revilo"]
[Result "0-1"]
[WhiteElo "2140"]
[BlackElo "2298"]
[TimeControl "180+1"]
[EndTime "11:28:25 PST"]
[Termination "03revilo won on time"]

1. e4 {[%clk 0:02:59.6]} 1... c5 {[%clk 0:02:59.9]} 2. Nf3 {[%clk 0:02:58]} 2...
d6 {[%clk 0:03:00.4]} 3. Bb5+ {[%clk 0:02:57.7]} 3... Nd7 {[%clk 0:02:59.9]} 4.
d4 {[%clk 0:02:41.8]} 4... cxd4 {[%clk 0:03:00.8]} 5. Qxd4 {[%clk 0:02:42.4]}
5... a6 {[%clk 0:02:59]} 6. Bxd7+ {[%clk 0:02:35.2]} 6... Bxd7 {[%clk
0:02:59.9]} 7. c4 {[%clk 0:02:25.9]} 7... Nf6 {[%clk 0:02:59]} 8. O-O {[%clk
0:02:24.2]} 8... e6 {[%clk 0:02:59]} 9. Nc3 {[%clk 0:02:24.2]} 9... Be7 {[%clk
0:02:58.6]} 10. Bg5 {[%clk 0:02:24.8]} 10... Bc6 {[%clk 0:02:45.3]} 11. Rad1
{[%clk 0:02:14.6]} 11... h6 {[%clk 0:02:43.6]} 12. Bh4 {[%clk 0:02:06]} 12...
O-O {[%clk 0:02:31.9]} 13. Bg3 {[%clk 0:02:02.9]} 13... e5 {[%clk 0:01:43.7]}
14. Qd3 {[%clk 0:02:01.5]} 14... Qa5 {[%clk 0:01:40.1]} 15. a3 {[%clk 0:01:59]}
15... b5 {[%clk 0:01:38.6]} 16. cxb5 {[%clk 0:01:52.4]} 16... axb5 {[%clk
0:01:39.5]} 17. Nh4 {[%clk 0:01:39.2]} 17... Rfd8 {[%clk 0:01:29.3]} 18. Nf5
{[%clk 0:01:35]} 18... Bf8 {[%clk 0:01:29.3]} 19. Nd5 {[%clk 0:01:19.7]} 19...
Bxd5 {[%clk 0:01:08.5]} 20. exd5 {[%clk 0:01:19]} 20... b4 {[%clk 0:01:08.6]}
21. axb4 {[%clk 0:01:18.2]} 21... Qxb4 {[%clk 0:01:09.5]} 22. b3 {[%clk
0:00:56.4]} 22... Ra5 {[%clk 0:01:06.9]} 23. Ne3 {[%clk 0:00:54.2]} 23... Rb8
{[%clk 0:01:01]} 24. Rb1 {[%clk 0:00:38.2]} 24... h5 {[%clk 0:00:49.1]} 25. h3
{[%clk 0:00:37.6]} 25... g6 {[%clk 0:00:47]} 26. f4 {[%clk 0:00:36]} 26... e4
{[%clk 0:00:38.2]} 27. Qd1 {[%clk 0:00:35.9]} 27... Nxd5 {[%clk 0:00:18.3]} 28.
Nxd5 {[%clk 0:00:28.5]} 28... Qc5+ {[%clk 0:00:18.2]} 29. Kh2 {[%clk 0:00:28.2]}
29... Qxd5 {[%clk 0:00:18.3]} 30. Qe2 {[%clk 0:00:25.2]} 30... f5 {[%clk
0:00:08.7]} 31. Rfd1 {[%clk 0:00:21.6]} 31... Qe6 {[%clk 0:00:08.8]} 32. b4
{[%clk 0:00:20.4]} 32... Rab5 {[%clk 0:00:08.4]} 33. Be1 {[%clk 0:00:08.9]}
33... Bg7 {[%clk 0:00:07.8]} 34. Rdc1 {[%clk 0:00:09.5]} 34... d5 {[%clk
0:00:07]} 35. Qa2 {[%clk 0:00:07.3]} 35... Qf7 {[%clk 0:00:05.9]} 36. Bc3 {[%clk
0:00:03.9]} 36... d4 {[%clk 0:00:05]} 37. Qxf7+ {[%clk 0:00:01.8]} 37... Kxf7
{[%clk 0:00:05.9]} 38. Bd2 {[%clk 0:00:02.5]} 38... R8b7 {[%clk 0:00:05.1]} 39.
Rc4 {[%clk 0:00:02.2]} 39... e3 {[%clk 0:00:04.7]} 40. Be1 {[%clk 0:00:02.5]}
40... Ke6 {[%clk 0:00:04.6]} 41. Rc6+ {[%clk 0:00:02.1]} 41... Kd5 {[%clk
0:00:03.4]} 42. Rbc1 {[%clk 0:00:01.9]} 42... d3 {[%clk 0:00:01.8]} 0-1

[Event "*** Titled Tuesday Blitz"]
[Site "Chess.com"]
[Date "2020.12.29"]
[Round "8"]
[White "LiderChessAcademy"]
[Black "Shepherdboy"]
[Result "0-1"]
[WhiteElo "2601"]
[BlackElo "2375"]
[TimeControl "180+1"]
[EndTime "11:28:26 PST"]
[Termination "Shepherdboy won by resignation"]

1. c4 {[%clk 0:03:00.9]} 1... Nf6 {[%clk 0:02:50.1]} 2. Nc3 {[%clk 0:03:00.1]}
2... c5 {[%clk 0:02:47.7]} 3. Nf3 {[%clk 0:02:50]} 3... Nc6 {[%clk 0:02:47.7]}
4. e3 {[%clk 0:02:48.8]} 4... e5 {[%clk 0:02:43.4]} 5. d4 {[%clk 0:02:45.9]}
5... exd4 {[%clk 0:02:43.9]} 6. exd4 {[%clk 0:02:45.7]} 6... d5 {[%clk
0:02:44.5]} 7. Bg5 {[%clk 0:02:17.6]} 7... cxd4 {[%clk 0:02:40.6]} 8. Nxd5
{[%clk 0:02:02.7]} 8... Be7 {[%clk 0:02:33.4]} 9. Nxe7 {[%clk 0:01:53.5]} 9...
Qxe7+ {[%clk 0:02:30]} 10. Be2 {[%clk 0:01:46.3]} 10... h6 {[%clk 0:02:30.2]}
11. Bh4 {[%clk 0:01:39.5]} 11... Qb4+ {[%clk 0:02:30.1]} 12. Qd2 {[%clk
0:01:37.8]} 12... Qxd2+ {[%clk 0:02:25.3]} 13. Nxd2 {[%clk 0:01:38.7]} 13... O-O
{[%clk 0:02:12]} 14. Bxf6 {[%clk 0:01:35.4]} 14... gxf6 {[%clk 0:02:10.9]} 15.
O-O {[%clk 0:01:25]} 15... Re8 {[%clk 0:02:05.4]} 16. Bf3 {[%clk 0:01:21.7]}
16... Bf5 {[%clk 0:02:03.4]} 17. a3 {[%clk 0:01:15.6]} 17... Ne5 {[%clk
0:02:00.6]} 18. Bd5 {[%clk 0:01:12.5]} 18... Re7 {[%clk 0:01:48.5]} 19. Rfe1
{[%clk 0:00:59]} 19... Rae8 {[%clk 0:01:42.5]} 20. h3 {[%clk 0:00:51.3]} 20...
Kf8 {[%clk 0:01:38.3]} 21. b4 {[%clk 0:00:48.7]} 21... Be6 {[%clk 0:01:28.3]}
22. Bxe6 {[%clk 0:00:40.3]} 22... fxe6 {[%clk 0:01:29.2]} 23. c5 {[%clk
0:00:34.4]} 23... Nd3 {[%clk 0:01:29.2]} 24. Re4 {[%clk 0:00:31.3]} 24... e5
{[%clk 0:01:26.8]} 25. g4 {[%clk 0:00:29.7]} 25... Kf7 {[%clk 0:01:17.1]} 26.
Nc4 {[%clk 0:00:28.1]} 26... Ke6 {[%clk 0:01:16.7]} 27. Rd1 {[%clk 0:00:26.7]}
27... Kd5 {[%clk 0:01:06.2]} 28. Nd6 {[%clk 0:00:22.5]} 28... Nb2 {[%clk
0:00:52.8]} 29. Rde1 {[%clk 0:00:17.7]} 29... Nd3 {[%clk 0:00:49.9]} 30. Nxe8
{[%clk 0:00:14.6]} 30... Rxe8 {[%clk 0:00:44.7]} 31. R4e2 {[%clk 0:00:13.8]}
31... Nxe1 {[%clk 0:00:36.2]} 32. Rxe1 {[%clk 0:00:13.8]} 32... d3 {[%clk
0:00:37.1]} 33. Kf1 {[%clk 0:00:13.7]} 33... Kd4 {[%clk 0:00:37.2]} 34. Rd1
{[%clk 0:00:14]} 34... e4 {[%clk 0:00:35.7]} 35. Ke1 {[%clk 0:00:14]} 35... e3
{[%clk 0:00:31.8]} 36. fxe3+ {[%clk 0:00:14.9]} 36... Rxe3+ {[%clk 0:00:31.6]}
37. Kf2 {[%clk 0:00:15.8]} 37... Rxh3 {[%clk 0:00:31]} 38. Rc1 {[%clk
0:00:13.7]} 38... Rh2+ {[%clk 0:00:27.7]} 39. Kg3 {[%clk 0:00:12.7]} 39... Rc2
{[%clk 0:00:25.9]} 40. Rf1 {[%clk 0:00:12.3]} 40... d2 {[%clk 0:00:23.9]} 41.
Rxf6 {[%clk 0:00:12.5]} 41... Kc3 {[%clk 0:00:17.5]} 42. Rd6 {[%clk 0:00:11.1]}
42... Rc1 {[%clk 0:00:15.6]} 43. Kf4 {[%clk 0:00:09.1]} 43... d1=Q {[%clk
0:00:15.1]} 44. Rxd1 {[%clk 0:00:09.6]} 44... Rxd1 {[%clk 0:00:15.7]} 45. Kf5
{[%clk 0:00:10.5]} 45... Rg1 {[%clk 0:00:14.4]} 46. b5 {[%clk 0:00:10.2]} 46...
Kb3 {[%clk 0:00:13.1]} 47. c6 {[%clk 0:00:10.7]} 47... bxc6 {[%clk 0:00:12.9]}
48. bxc6 {[%clk 0:00:11.6]} 48... Rc1 {[%clk 0:00:12.9]} 49. Kg6 {[%clk
0:00:10.5]} 49... Rxc6+ {[%clk 0:00:12.6]} 50. Kh7 {[%clk 0:00:11.4]} 50... Kxa3
{[%clk 0:00:12.6]} 0-1

[Event "*** Titled Tuesday Blitz"]
[Site "Chess.com"]
[Date "2020.12.29"]
[Round "8"]
[White "IMUffeVinther-Schou"]
[Black "mbachez"]
[Result "0-1"]
[WhiteElo "2401"]
[BlackElo "2554"]
[TimeControl "180+1"]
[EndTime "11:28:27 PST"]
[Termination "mbachez won on time"]

1. e4 {[%clk 0:03:00.9]} 1... e6 {[%clk 0:02:59]} 2. d4 {[%clk 0:03:00.2]} 2...
d5 {[%clk 0:02:58.7]} 3. e5 {[%clk 0:02:59.9]} 3... c5 {[%clk 0:02:58.2]} 4. c3
{[%clk 0:03:00.8]} 4... Nc6 {[%clk 0:02:58.3]} 5. Nf3 {[%clk 0:03:00.9]} 5...
Qb6 {[%clk 0:02:58.1]} 6. Be2 {[%clk 0:03:00.2]} 6... Nge7 {[%clk 0:02:57.3]} 7.
Na3 {[%clk 0:02:59.3]} 7... cxd4 {[%clk 0:02:57.1]} 8. cxd4 {[%clk 0:02:58.8]}
8... Nf5 {[%clk 0:02:56.6]} 9. Nc2 {[%clk 0:02:58.2]} 9... Bb4+ {[%clk 0:02:56]}
10. Kf1 {[%clk 0:02:56.7]} 10... Be7 {[%clk 0:02:55.3]} 11. h4 {[%clk
0:02:45.8]} 11... f6 {[%clk 0:02:51.7]} 12. g4 {[%clk 0:02:20.9]} 12... Nh6
{[%clk 0:02:51.2]} 13. exf6 {[%clk 0:02:20.1]} 13... Bf8 {[%clk 0:02:35.6]} 14.
Bxh6 {[%clk 0:02:12.7]} 14... gxh6 {[%clk 0:02:33.9]} 15. Ne5 {[%clk 0:02:06.6]}
15... Nxe5 {[%clk 0:02:29.8]} 16. dxe5 {[%clk 0:02:05.5]} 16... Bc5 {[%clk
0:02:27.5]} 17. Rh2 {[%clk 0:01:54.6]} 17... Bd7 {[%clk 0:02:22.3]} 18. b4
{[%clk 0:01:48.7]} 18... Bf8 {[%clk 0:02:20.5]} 19. a4 {[%clk 0:01:44.3]} 19...
Rc8 {[%clk 0:02:18.9]} 20. Bd3 {[%clk 0:01:41.3]} 20... Qc7 {[%clk 0:02:12.2]}
21. f4 {[%clk 0:01:37.3]} 21... Qc3 {[%clk 0:01:53.8]} 22. Ra3 {[%clk
0:01:34.6]} 22... Qb2 {[%clk 0:01:49]} 23. Qa1 {[%clk 0:01:27.9]} 23... Qxa1+
{[%clk 0:01:31.8]} 24. Rxa1 {[%clk 0:01:26.9]} 24... Rg8 {[%clk 0:01:27.5]} 25.
g5 {[%clk 0:01:25.6]} 25... Rh8 {[%clk 0:01:20.2]} 26. Ke2 {[%clk 0:01:17.5]}
26... Kd8 {[%clk 0:01:17.8]} 27. Kd2 {[%clk 0:01:14.9]} 27... Be8 {[%clk
0:01:12.5]} 28. Ra3 {[%clk 0:01:11.2]} 28... a5 {[%clk 0:01:08.6]} 29. Bb5
{[%clk 0:00:31]} 29... axb4 {[%clk 0:01:01]} 30. Rb3 {[%clk 0:00:26.5]} 30...
Bg6 {[%clk 0:00:58.5]} 31. Bd3 {[%clk 0:00:18.8]} 31... Be8 {[%clk 0:00:57.2]}
32. Nxb4 {[%clk 0:00:15.6]} 32... Bxa4 {[%clk 0:00:55.9]} 33. Rb2 {[%clk
0:00:16.5]} 33... Bc5 {[%clk 0:00:48.1]} 34. Rh1 {[%clk 0:00:14.7]} 34... Bd4
{[%clk 0:00:44]} 35. Ra2 {[%clk 0:00:14.1]} 35... Bb3 {[%clk 0:00:41.6]} 36. Ra3
{[%clk 0:00:13.6]} 36... Bc3+ {[%clk 0:00:40]} 37. Ke2 {[%clk 0:00:11.4]} 37...
Bxb4 {[%clk 0:00:34.5]} 38. Rxb3 {[%clk 0:00:11]} 38... Bc5 {[%clk 0:00:28.1]}
39. Rxb7 {[%clk 0:00:09.8]} 39... Ra8 {[%clk 0:00:26.4]} 40. Rhb1 {[%clk
0:00:08]} 40... Kc8 {[%clk 0:00:25.6]} 41. Ba6 {[%clk 0:00:04.2]} 41... Rxa6
{[%clk 0:00:22.6]} 42. Rb8+ {[%clk 0:00:03.7]} 42... Kc7 {[%clk 0:00:23.1]} 43.
Rxh8 {[%clk 0:00:02.5]} 43... Ra2+ {[%clk 0:00:23.3]} 44. Kd3 {[%clk 0:00:01.3]}
44... Ra3+ {[%clk 0:00:23]} 45. Kc2 {[%clk 0:00:01]} 45... Rf3 {[%clk
0:00:23.5]} 0-1

[Event "*** Titled Tuesday Blitz"]
[Site "Chess.com"]
[Date "2020.12.29"]
[Round "8"]
[White "viktorko131"]
[Black "esteban062000"]
[Result "0-1"]
[WhiteElo "2065"]
[BlackElo "2194"]
[TimeControl "180+1"]
[EndTime "11:28:27 PST"]
[Termination "esteban062000 won on time"]

1. e4 {[%clk 0:03:00.9]} 1... c5 {[%clk 0:02:59.9]} 2. Nf3 {[%clk 0:03:00.4]}
2... g6 {[%clk 0:02:58.8]} 3. d4 {[%clk 0:03:00.7]} 3... cxd4 {[%clk 0:02:59.7]}
4. Nxd4 {[%clk 0:02:59.8]} 4... Nc6 {[%clk 0:02:59.9]} 5. Nc3 {[%clk 0:02:57.6]}
5... Bg7 {[%clk 0:02:59.8]} 6. Be3 {[%clk 0:02:58.3]} 6... Nf6 {[%clk
0:02:59.9]} 7. Bc4 {[%clk 0:02:58.8]} 7... O-O {[%clk 0:02:56]} 8. Bb3 {[%clk
0:02:52.5]} 8... d6 {[%clk 0:02:54.5]} 9. f3 {[%clk 0:02:48.1]} 9... Qa5 {[%clk
0:02:53.4]} 10. Qd2 {[%clk 0:02:48]} 10... Nxd4 {[%clk 0:02:45.9]} 11. Bxd4
{[%clk 0:02:47.4]} 11... Nd7 {[%clk 0:02:46.2]} 12. Bxg7 {[%clk 0:02:33]} 12...
Kxg7 {[%clk 0:02:47.1]} 13. h4 {[%clk 0:02:31.1]} 13... h5 {[%clk 0:02:36.7]}
14. O-O-O {[%clk 0:02:30.3]} 14... Nc5 {[%clk 0:02:29.1]} 15. Qd4+ {[%clk
0:02:00.4]} 15... Kg8 {[%clk 0:02:25.8]} 16. Nd5 {[%clk 0:01:25.5]} 16... Nxb3+
{[%clk 0:02:15]} 17. axb3 {[%clk 0:01:24.4]} 17... Re8 {[%clk 0:01:41.4]} 18. b4
{[%clk 0:01:22.5]} 18... Qd8 {[%clk 0:01:38.5]} 19. g4 {[%clk 0:01:18.6]} 19...
hxg4 {[%clk 0:01:28.6]} 20. h5 {[%clk 0:01:15.7]} 20... e5 {[%clk 0:01:27.9]}
21. Qe3 {[%clk 0:00:57.6]} 21... g5 {[%clk 0:01:20]} 22. fxg4 {[%clk 0:00:50.5]}
22... Be6 {[%clk 0:01:18.3]} 23. h6 {[%clk 0:00:22.2]} 23... Bxd5 {[%clk
0:01:17.5]} 24. Rxd5 {[%clk 0:00:15.9]} 24... Qf6 {[%clk 0:01:12]} 25. Rh5
{[%clk 0:00:12.6]} 25... Qf1+ {[%clk 0:00:54.7]} 26. Rd1 {[%clk 0:00:12.1]}
26... Qf4 {[%clk 0:00:48]} 27. Rxg5+ {[%clk 0:00:12]} 27... Kh7 {[%clk
0:00:48.1]} 28. Qxf4 {[%clk 0:00:09.4]} 28... exf4 {[%clk 0:00:48.3]} 29. Rxd6
{[%clk 0:00:04.9]} 29... Rg8 {[%clk 0:00:44.4]} 30. Rf5 {[%clk 0:00:05.3]} 30...
Rxg4 {[%clk 0:00:44]} 31. Rxf7+ {[%clk 0:00:05]} 31... Kh8 {[%clk 0:00:44.5]}
32. Kd2 {[%clk 0:00:01.9]} 32... Rc8 {[%clk 0:00:43.7]} 33. Rdd7 {[%clk
0:00:01.5]} 33... Rg2+ {[%clk 0:00:43.1]} 34. Kd3 {[%clk 0:00:01.7]} 34... Rg3+
{[%clk 0:00:42.2]} 35. Kd4 {[%clk 0:00:02]} 35... Rxc2 {[%clk 0:00:28.2]} 36.
Rxb7 {[%clk 0:00:02]} 36... Rd2+ {[%clk 0:00:27.7]} 37. Ke5 {[%clk 0:00:01.7]}
37... f3 {[%clk 0:00:27.4]} 38. Rh7+ {[%clk 0:00:01.4]} 38... Kg8 {[%clk
0:00:26.8]} 39. Rhc7 {[%clk 0:00:02]} 39... Kh8 {[%clk 0:00:24.3]} 40. Rc8+
{[%clk 0:00:02.1]} 40... Rg8 {[%clk 0:00:24]} 41. Rxg8+ {[%clk 0:00:02.1]} 41...
Kxg8 {[%clk 0:00:24.9]} 42. Kf6 {[%clk 0:00:02.5]} 42... Rd6+ {[%clk 0:00:23.7]}
43. Kg5 {[%clk 0:00:02.6]} 43... f2 {[%clk 0:00:23.8]} 44. h7+ {[%clk
0:00:02.1]} 44... Kh8 {[%clk 0:00:24.3]} 45. Rb8+ {[%clk 0:00:02.2]} 45... Kxh7
{[%clk 0:00:24.3]} 46. Rf8 {[%clk 0:00:03.1]} 46... Rg6+ {[%clk 0:00:22.1]} 47.
Kh4 {[%clk 0:00:02.8]} 47... Rh6+ {[%clk 0:00:22.3]} 48. Kg3 {[%clk 0:00:03]}
48... Kg7 {[%clk 0:00:22.3]} 49. Rxf2 {[%clk 0:00:02.3]} 49... Rb6 {[%clk
0:00:22.4]} 50. Rc2 {[%clk 0:00:01.7]} 50... Kg6 {[%clk 0:00:20.8]} 51. Kf4
{[%clk 0:00:00.1]} 51... Rxb4 {[%clk 0:00:21.1]} 0-1

[Event "*** Titled Tuesday Blitz"]
[Site "Chess.com"]
[Date "2020.12.29"]
[Round "8"]
[White "olksuna"]
[Black "Beca95"]
[Result "0-1"]
[WhiteElo "2641"]
[BlackElo "2829"]
[TimeControl "180+1"]
[EndTime "11:28:28 PST"]
[Termination "Beca95 won on time"]

1. e4 {[%clk 0:03:00.9]} 1... g6 {[%clk 0:02:59.3]} 2. d4 {[%clk 0:03:00.3]}
2... Bg7 {[%clk 0:02:59.8]} 3. Nf3 {[%clk 0:03:00.4]} 3... d6 {[%clk 0:02:59.7]}
4. Bc4 {[%clk 0:03:00.4]} 4... Nf6 {[%clk 0:02:59.4]} 5. Qe2 {[%clk 0:03:00.3]}
5... O-O {[%clk 0:02:53.1]} 6. e5 {[%clk 0:02:59.4]} 6... Nfd7 {[%clk
0:02:45.1]} 7. h3 {[%clk 0:02:53]} 7... Nc6 {[%clk 0:02:03.8]} 8. e6 {[%clk
0:02:49.7]} 8... Nb6 {[%clk 0:02:03.4]} 9. exf7+ {[%clk 0:02:47.6]} 9... Kh8
{[%clk 0:02:03.6]} 10. Bb3 {[%clk 0:02:36.1]} 10... Nxd4 {[%clk 0:02:02.7]} 11.
Nxd4 {[%clk 0:02:35.7]} 11... Bxd4 {[%clk 0:02:03.4]} 12. O-O {[%clk 0:02:32.3]}
12... e6 {[%clk 0:01:59.6]} 13. Bxe6 {[%clk 0:02:25.2]} 13... Bxe6 {[%clk
0:01:58.5]} 14. Qxe6 {[%clk 0:02:24.5]} 14... Qf6 {[%clk 0:01:59.2]} 15. Qxf6+
{[%clk 0:02:15.5]} 15... Bxf6 {[%clk 0:02:00.1]} 16. c3 {[%clk 0:02:11.3]} 16...
Rxf7 {[%clk 0:02:00.3]} 17. Nd2 {[%clk 0:02:11.6]} 17... Re8 {[%clk 0:01:59.1]}
18. Nf3 {[%clk 0:02:05.6]} 18... Kg7 {[%clk 0:01:58.6]} 19. a4 {[%clk
0:01:57.7]} 19... a6 {[%clk 0:01:56.8]} 20. a5 {[%clk 0:01:57.2]} 20... Nc4
{[%clk 0:01:55.8]} 21. Ra4 {[%clk 0:01:53.7]} 21... d5 {[%clk 0:01:55.1]} 22.
Rb4 {[%clk 0:01:48.9]} 22... c6 {[%clk 0:01:54.7]} 23. Bg5 {[%clk 0:01:42.1]}
23... Nxa5 {[%clk 0:01:26.4]} 24. Bxf6+ {[%clk 0:01:31.1]} 24... Kxf6 {[%clk
0:01:27.3]} 25. b3 {[%clk 0:01:26.6]} 25... c5 {[%clk 0:01:25.7]} 26. Rb6+
{[%clk 0:01:18.8]} 26... Nc6 {[%clk 0:01:13.4]} 27. b4 {[%clk 0:01:14.6]} 27...
cxb4 {[%clk 0:01:12]} 28. cxb4 {[%clk 0:01:15.5]} 28... Re4 {[%clk 0:00:57.4]}
29. Rb1 {[%clk 0:01:09]} 29... Rd7 {[%clk 0:00:46.2]} 30. b5 {[%clk 0:01:05.3]}
30... axb5 {[%clk 0:00:43.3]} 31. R1xb5 {[%clk 0:01:00]} 31... Ree7 {[%clk
0:00:29.8]} 32. Nd4 {[%clk 0:00:53.2]} 32... Rd6 {[%clk 0:00:28.3]} 33. Nf3
{[%clk 0:00:46.3]} 33... d4 {[%clk 0:00:27.9]} 34. Rxb7 {[%clk 0:00:41.6]} 34...
Rxb7 {[%clk 0:00:26.2]} 35. Rxb7 {[%clk 0:00:42.5]} 35... d3 {[%clk 0:00:26.6]}
36. Nd2 {[%clk 0:00:42.8]} 36... Re6 {[%clk 0:00:26.2]} 37. f3 {[%clk
0:00:40.4]} 37... Re1+ {[%clk 0:00:25.1]} 38. Kh2 {[%clk 0:00:37.4]} 38... h6
{[%clk 0:00:25.3]} 39. Rd7 {[%clk 0:00:33.2]} 39... Ne5 {[%clk 0:00:24.2]} 40.
Rd6+ {[%clk 0:00:32.4]} 40... Ke7 {[%clk 0:00:24.6]} 41. Rd5 {[%clk 0:00:30.4]}
41... Re2 {[%clk 0:00:23.6]} 42. Ne4 {[%clk 0:00:12.7]} 42... Nxf3+ {[%clk
0:00:22.6]} 43. Kg3 {[%clk 0:00:13.4]} 43... Ne1 {[%clk 0:00:22]} 44. Nf2 {[%clk
0:00:09.2]} 44... d2 {[%clk 0:00:22.4]} 45. Rd4 {[%clk 0:00:06.9]} 45... g5
{[%clk 0:00:21.7]} 46. Rd5 {[%clk 0:00:05.5]} 46... Ke6 {[%clk 0:00:21.8]} 47.
Rd8 {[%clk 0:00:05.4]} 47... Kf5 {[%clk 0:00:20.2]} 48. Rf8+ {[%clk 0:00:05.4]}
48... Kg6 {[%clk 0:00:20.4]} 49. Rg8+ {[%clk 0:00:05.6]} 49... Kf7 {[%clk
0:00:19.9]} 50. Rd8 {[%clk 0:00:06.5]} 50... h5 {[%clk 0:00:20.3]} 51. h4 {[%clk
0:00:02.5]} 51... gxh4+ {[%clk 0:00:20.5]} 0-1